bitfinex-derivatives/quotes_BTCF0:USTF0_20250620
["timestamp","ask_amount","ask_price","bid_price","bid_amount"]
[1750404446903,0.3696683,105260.0,105250.0,1.88914775]
[1750404448809,0.12132525,105260.0,105250.0,1.88914775]
[1750404449113,0.3696683,105260.0,105250.0,1.88914775]
[1750404450904,0.12132525,105260.0,105250.0,1.88914775]
[1750404451107,0.3696683,105260.0,105250.0,1.88914775]
[1750404451306,0.559655,105260.0,105250.0,1.88914775]
[1750404451498,0.12132525,105260.0,105250.0,1.88914775]
[1750404451703,0.3696683,105260.0,105250.0,1.88914775]
[1750404452105,0.12132525,105260.0,105250.0,1.88914775]
[1750404452304,0.3696683,105260.0,105250.0,1.88914775]
[1750404452908,0.3696683,105260.0,105250.0,1.6408047]
[1750404453108,0.3696683,105260.0,105250.0,1.88914775]
[1750404453310,0.12132525,105260.0,105250.0,1.88914775]
[1750404453517,0.80799805,105260.0,105250.0,1.0513647]
[1750404453814,0.7510728,105260.0,105250.0,1.6407248]
[1750404454313,0.3325351,105250.0,105240.0,0.5983237]
[1750404454519,0.3325351,105250.0,105240.0,1.3274437]
[1750404454520,0.4290351,105250.0,105240.0,1.3274437]
[1750404454907,0.67737815,105250.0,105240.0,1.57578675]
[1750404455112,0.67737815,105250.0,105240.0,0.84666675]
[1750404455311,0.67737815,105250.0,105240.0,1.57578675]
[1750404455801,0.67737815,105250.0,105240.0,0.5983237]
[1750404456008,0.67737815,105250.0,105240.0,1.57578675]
[1750404456810,0.67743935,105250.0,105240.0,1.3274437]
[1750404457822,0.67743935,105250.0,105240.0,1.2799382]
[1750404459211,0.73438722,105250.0,105240.0,1.2799382]
[1750404460018,0.48598297,105250.0,105240.0,0.5508182]
[1750404460219,0.73438722,105250.0,105240.0,1.2799382]
[1750404462020,0.67743935,105250.0,105240.0,1.2799382]
[1750404462220,0.67743935,105250.0,105240.0,1.2799782]
[1750404462516,0.4290351,105250.0,105240.0,1.2799782]
[1750404462723,0.67743935,105250.0,105240.0,1.2799782]
[1750404463209,0.73436501,105250.0,105240.0,1.2799782]
[1750404465920,0.73436501,105250.0,105240.0,0.5508182]
[1750404466223,0.73436501,105250.0,105240.0,1.2798182]
[1750404466720,0.48596076,105250.0,105240.0,1.2798182]
[1750404467025,0.73436501,105250.0,105240.0,1.2798182]
[1750404467627,0.73436501,105250.0,105240.0,1.28057201]
[1750404468628,0.73436501,105250.0,105240.0,0.55157201]
[1750404468826,0.73436501,105250.0,105240.0,1.28057201]
[1750404469017,0.73436501,105250.0,105240.0,1.28053201]
[1750404469220,0.73436501,105250.0,105240.0,1.28470608]
[1750404469427,0.48596076,105250.0,105240.0,1.28470608]
[1750404469628,0.73436501,105250.0,105240.0,1.28470608]
[1750404470529,0.73436501,105250.0,105240.0,1.28474608]
[1750404471230,0.73436501,105250.0,105240.0,1.31624608]
[1750404471433,0.67743935,105250.0,105240.0,0.58725068]
[1750404471630,0.70154514,105250.0,105240.0,1.31621068]
[1750404471831,0.45314089,105250.0,105240.0,1.31621068]
[1750404472029,0.70154514,105250.0,105240.0,1.37821068]
[1750404472229,0.45314089,105250.0,105240.0,1.37821068]
[1750404472531,0.63784514,105250.0,105240.0,1.37821068]
[1750404472927,0.63784514,105250.0,105240.0,1.62661493]
[1750404473130,0.38944089,105250.0,105240.0,1.62661493]
[1750404473320,0.38984089,105250.0,105240.0,1.62661493]
[1750404473529,0.38984089,105250.0,105240.0,1.37821068]
[1750404474023,0.38944089,105250.0,105240.0,1.37821068]
[1750404474423,0.38984089,105250.0,105240.0,1.37821068]
[1750404475130,0.38984089,105250.0,105240.0,1.64355288]
[1750404475131,0.05730579,105250.0,105240.0,1.64355288]
[1750404475525,0.38940539,105260.0,105250.0,0.1900047]
[1750404475727,0.38940539,105260.0,105250.0,0.6128047]
[1750404476032,0.39020539,105260.0,105250.0,0.6128047]
[1750404477728,0.63860964,105260.0,105250.0,0.6128047]
[1750404477929,0.58170385,105260.0,105250.0,0.6128047]
[1750404479533,0.3332996,105260.0,105250.0,0.6128047]
[1750404479729,0.58170385,105260.0,105250.0,0.6128047]
[1750404482837,0.3332996,105260.0,105250.0,0.6128047]
[1750404483649,0.58170385,105260.0,105250.0,0.6128047]
[1750404485051,0.63866781,105260.0,105250.0,0.6128047]
[1750404485453,0.63866781,105260.0,105250.0,0.61697877]
[1750404486753,0.39026356,105260.0,105250.0,0.86538302]
[1750404486946,0.63859073,105260.0,105250.0,0.86530594]
[1750404488256,0.8869179,105260.0,105250.0,1.20613877]
[1750404488457,0.8869179,105260.0,105250.0,1.45446594]
[1750404489757,0.8869179,105260.0,105250.0,1.20613877]
[1750404489962,0.8869179,105260.0,105250.0,1.45446594]
[1750404490147,0.39026356,105260.0,105250.0,1.45446594]
[1750404490351,0.8869179,105260.0,105250.0,1.45446594]
[1750404490657,0.63859073,105260.0,105250.0,1.45446594]
[1750404490953,0.63859073,105260.0,105250.0,1.20613877]
[1750404491145,0.63859073,105260.0,105250.0,1.59410594]
[1750404491556,0.63859073,105260.0,105250.0,1.34577877]
[1750404491752,0.63859073,105260.0,105250.0,1.59410594]
[1750404492062,0.82995394,105260.0,105250.0,1.53210594]
[1750404492259,0.89215394,105260.0,105250.0,1.53210594]
[1750404493558,0.89215394,105260.0,105250.0,0.80330594]
[1750404493759,0.89215394,105260.0,105250.0,0.36497407]
[1750404494060,0.89215394,105260.0,105250.0,1.09377407]
[1750404494252,0.92405394,105260.0,105250.0,1.09377407]
[1750404494458,0.99995428,105260.0,105250.0,0.36497407]
[1750404494659,0.99995428,105260.0,105250.0,1.09365407]
[1750404495059,0.99995428,105260.0,105250.0,0.36497407]
[1750404495466,1.36075428,105260.0,105250.0,0.73281407]
[1750404495853,1.36075428,105260.0,105250.0,0.00417407]
[1750404496148,1.36075428,105260.0,105250.0,0.59325407]
[1750404496355,0.1900047,105250.0,105240.0,0.00075381]
[1750404496556,0.50153187,105250.0,105240.0,1.09019381]
[1750404498164,0.50153187,105250.0,105240.0,1.28021661]
[1750404498465,0.50153187,105250.0,105240.0,0.55157661]
[1750404498664,0.50153187,105250.0,105240.0,1.28021661]
[1750404498963,0.50162312,105250.0,105240.0,1.28021661]
[1750404499659,0.50162312,105250.0,105240.0,1.28439068]
[1750404502764,0.50162312,105250.0,105240.0,0.55575068]
[1750404502964,0.50162312,105250.0,105240.0,1.28435068]
[1750404505267,0.50162312,105250.0,105240.0,0.55575068]
[1750404505563,0.50162312,105250.0,105240.0,1.28439068]
[1750404507162,0.1900047,105250.0,105240.0,1.97293499]
[1750404507363,0.1904047,105250.0,105240.0,1.9556091]
[1750404507554,0.24694258,105250.0,105240.0,1.9556091]
[1750404507763,0.24734258,105250.0,105240.0,1.9556091]
[1750404508061,0.43882312,105250.0,105240.0,1.70719068]
[1750404512971,0.1904047,105250.0,105240.0,1.70719068]
[1750404514075,0.43882312,105250.0,105240.0,1.70719068]
[1750404515662,0.0004,105250.0,105240.0,1.70719068]
[1750404515864,0.24735349,105250.0,105240.0,1.70719068]
[1750404516477,0.24735349,105250.0,105240.0,1.72430095]
[1750404516769,0.49577191,105250.0,105240.0,1.72430095]
[1750404517366,0.24735349,105250.0,105240.0,1.72430095]
[1750404518775,0.24735349,105250.0,105240.0,1.70719068]
[1750404519675,0.49577191,105250.0,105240.0,1.70719068]
[1750404520267,0.24735349,105250.0,105240.0,1.70719068]
[1750404520876,0.43878538,105250.0,105240.0,1.95557136]
[1750404522574,0.43838538,105250.0,105240.0,1.95533136]
[1750404522774,0.43878538,105250.0,105240.0,1.95533136]
[1750404526875,0.24740808,105250.0,105240.0,2.20371204]
[1750404527066,0.24700808,105250.0,105240.0,2.20371204]
[1750404527468,0.24740808,105250.0,105240.0,2.20371204]
[1750404528378,0.49578876,105250.0,105240.0,2.20371204]
[1750404528680,0.49578876,105250.0,105240.0,1.95525136]
[1750404532176,0.49578876,105250.0,105240.0,1.95489136]
[1750404533074,0.49578876,105250.0,105240.0,1.70651068]
[1750404533271,0.49578876,105250.0,105240.0,1.95489136]
[1750404533471,0.49578876,105250.0,105240.0,1.22693136]
[1750404533672,0.49578876,105250.0,105240.0,1.95489136]
[1750404533874,0.24740808,105250.0,105240.0,1.22693136]
[1750404534074,0.49578876,105250.0,105240.0,1.95489136]
[1750404534577,0.49578876,105250.0,105240.0,1.22693136]
[1750404534776,0.49578876,105250.0,105240.0,1.95489136]
[1750404535480,0.49578876,105250.0,105240.0,1.95485136]
[1750404535681,0.55878876,105250.0,105240.0,1.95485136]
[1750404535982,0.55878876,105250.0,105240.0,1.11791068]
[1750404536280,0.55878876,105250.0,105240.0,1.95485136]
[1750404536578,0.55878876,105250.0,105240.0,0.97855068]
[1750404536783,0.55878876,105250.0,105240.0,1.64447068]
[1750404536979,0.55878876,105250.0,105240.0,1.89285136]
[1750404537281,0.50178538,105250.0,105240.0,1.89285136]
[1750404537677,0.2534047,105250.0,105240.0,1.89285136]
[1750404537883,0.2534047,105250.0,105240.0,1.64447068]
[1750404538079,0.50178538,105250.0,105240.0,1.64447068]
[1750404538380,0.50178538,105250.0,105240.0,2.14123204]
[1750404538983,0.50178538,105250.0,105240.0,1.89285136]
[1750404540283,0.50178538,105250.0,105240.0,1.92417136]
[1750404540584,0.2534047,105250.0,105240.0,1.92417136]
[1750404540781,0.50178538,105250.0,105240.0,1.92417136]
[1750404542682,0.50178538,105250.0,105240.0,0.94795068]
[1750404542878,0.50178538,105250.0,105240.0,1.92413136]
[1750404543378,0.2534047,105250.0,105240.0,2.17251204]
[1750404543677,0.50178538,105250.0,105240.0,2.17251204]
[1750404543882,0.2534047,105250.0,105240.0,2.23741204]
[1750404545985,0.2227047,105250.0,105240.0,2.23741204]
[1750404546286,0.0573957,105250.0,105240.0,2.50323895]
[1750404546480,0.0573957,105250.0,105240.0,2.25485827]
[1750404546786,0.2470004,105250.0,105240.0,2.25485827]
[1750404546990,0.2474004,105250.0,105240.0,2.25485827]
[1750404548185,0.2474004,105250.0,105240.0,1.75809691]
[1750404548382,0.2474004,105250.0,105240.0,2.25485827]
[1750404549490,0.2474004,105250.0,105240.0,1.75809691]
[1750404549676,0.2474004,105250.0,105240.0,2.25485827]
[1750404551086,0.0573957,105250.0,105240.0,2.25485827]
[1750404551688,0.0569957,105250.0,105240.0,2.25485827]
[1750404551891,0.0573957,105250.0,105240.0,2.25485827]
[1750404552896,0.0573957,105250.0,105240.0,1.75809691]
[1750404553188,0.0573957,105250.0,105240.0,2.25485827]
[1750404553387,0.0573957,105250.0,105240.0,1.75809691]
[1750404553691,0.2474004,105250.0,105240.0,2.25465827]
[1750404556098,0.2474004,105250.0,105240.0,1.52705827]
[1750404556288,0.49578108,105250.0,105240.0,1.16937691]
[1750404556488,0.49578108,105250.0,105240.0,1.44331547]
[1750404556489,0.55688108,105250.0,105240.0,1.44331547]
[1750404556693,0.55688108,105250.0,105240.0,1.94101759]
[1750404556895,0.2515047,105250.0,105240.0,1.94102816]
[1750404558700,0.2515047,105250.0,105240.0,1.19634193]
[1750404558898,0.2515047,105250.0,105240.0,1.92358193]
[1750404559595,0.24737801,105250.0,105240.0,1.44473318]
[1750404559802,0.24737801,105250.0,105240.0,1.98714193]
[1750404560101,0.24697801,105250.0,105240.0,1.98714193]
[1750404560302,0.24737801,105250.0,105240.0,1.98714193]
[1750404562704,0.24737801,105250.0,105240.0,1.25994193]
[1750404563001,0.24737801,105250.0,105240.0,1.98714193]
[1750404563201,0.24737801,105250.0,105240.0,1.98710193]
[1750404563796,0.26737801,105250.0,105240.0,1.98910193]
[1750404564304,0.26737801,105250.0,105240.0,1.26194193]
[1750404564605,0.26737801,105250.0,105240.0,1.98910193]
[1750404565307,0.26737801,105250.0,105240.0,1.74071068]
[1750404565598,0.26737801,105250.0,105240.0,1.98910193]
[1750404565804,0.26737801,105250.0,105240.0,1.98906193]
[1750404566116,0.2740047,105250.0,105240.0,1.92546193]
[1750404567608,0.2740047,105250.0,105240.0,1.67707068]
[1750404568608,0.2740047,105250.0,105240.0,1.92546193]
[1750404568908,0.2740047,105250.0,105240.0,1.67707068]
[1750404569108,0.2740047,105250.0,105240.0,1.92546193]
[1750404570604,0.2740047,105250.0,105240.0,1.67707068]
[1750404570796,0.2740047,105250.0,105240.0,1.92542193]
[1750404571111,0.2740047,105250.0,105240.0,1.67703068]
[1750404574111,0.2740047,105250.0,105240.0,0.94995068]
[1750404574321,0.2740047,105250.0,105240.0,1.67699068]
[1750404575208,0.2740047,105250.0,105240.0,1.92538193]
[1750404575515,0.2740047,105250.0,105240.0,1.92534193]
[1750404575816,0.2740047,105250.0,105240.0,1.98754193]
[1750404576017,0.2740047,105250.0,105240.0,1.73915068]
[1750404576221,0.2740047,105250.0,105240.0,1.98754193]
[1750404576816,0.2740047,105250.0,105240.0,2.23590676]
[1750404577023,0.52238274,105250.0,105240.0,2.23590676]
[1750404577313,0.2740047,105250.0,105240.0,2.23590676]
[1750404577616,0.52238274,105250.0,105240.0,2.23590676]
[1750404578716,0.2104047,105250.0,105240.0,2.23590676]
[1750404578916,0.2104047,105250.0,105240.0,2.2528324]
[1750404579215,0.2100047,105250.0,105240.0,2.2528324]
[1750404579412,0.45838274,105250.0,105240.0,2.2528324]
[1750404580007,0.45878274,105250.0,105240.0,2.2528324]
[1750404582618,0.45878274,105250.0,105240.0,1.5258324]
[1750404582812,0.45878274,105250.0,105240.0,2.2527524]
[1750404584518,0.45878274,105250.0,105240.0,1.02907632]
[1750404584718,0.45878274,105250.0,105240.0,2.2527524]
[1750404585718,0.2104047,105250.0,105240.0,2.2527524]
[1750404585918,0.45878274,105250.0,105240.0,2.2527524]
[1750404586726,0.45878274,105250.0,105240.0,1.6649124]
[1750404586924,0.45878274,105250.0,105240.0,2.00429436]
[1750404587127,0.45878274,105250.0,105240.0,1.75591632]
[1750404587423,0.45878274,105250.0,105240.0,1.81407156]
[1750404587623,0.45878274,105250.0,105240.0,2.00409436]
[1750404587812,0.2104047,105250.0,105240.0,2.00409436]
[1750404588017,0.45878274,105250.0,105240.0,2.00409436]
[1750404588826,0.2104047,105250.0,105240.0,1.75571632]
[1750404589027,0.45878274,105250.0,105240.0,2.00409436]
[1750404590225,0.53468308,105250.0,105240.0,2.00409436]
[1750404590618,0.59988308,105250.0,105240.0,1.75571632]
[1750404590813,0.59988308,105250.0,105240.0,2.00409436]
[1750404591222,0.59988308,105250.0,105240.0,2.00405436]
[1750404592125,0.59988308,105250.0,105240.0,1.75567632]
[1750404592327,0.59988308,105250.0,105240.0,2.00405436]
[1750404592927,0.59988308,105250.0,105240.0,1.75567632]
[1750404593121,0.59988308,105250.0,105240.0,2.00405436]
[1750404593427,0.52398274,105250.0,105240.0,2.00405436]
[1750404596425,0.52398274,105250.0,105240.0,1.41633436]
[1750404596634,0.52398274,105250.0,105240.0,2.00401436]
[1750404598438,0.52398274,105250.0,105240.0,1.98708872]
[1750404599034,0.52398274,105250.0,105240.0,1.73871068]
[1750404599235,0.52398274,105250.0,105240.0,1.36900872]
[1750404599435,0.52398274,105250.0,105240.0,1.95664872]
[1750404599628,0.52398274,105250.0,105240.0,1.76662592]
[1750404599828,0.2756047,105250.0,105240.0,1.95664862]
[1750404600024,0.52398274,105250.0,105240.0,1.95664862]
[1750404600228,0.52398274,105250.0,105240.0,0.03832788]
[1750404600433,0.1900227,105240.0,105230.0,0.16908]
[1750404600636,0.82617912,105240.0,105230.0,0.9795608]
[1750404600842,0.57780108,105240.0,105230.0,0.64029884]
[1750404601134,0.32942304,105240.0,105230.0,0.2530408]
[1750404601330,0.26592304,105240.0,105230.0,1.26019884]
[1750404601635,0.20270754,105250.0,105230.0,1.43295804]
[1750404601835,0.20270754,105250.0,105240.0,1.08037878]
[1750404601836,0.07630034,105250.0,105240.0,1.08037878]
[1750404602036,0.0004,105250.0,105240.0,1.14577878]
[1750404602231,0.0008,105260.0,105250.0,0.1900047]
[1750404602441,0.0008,105260.0,105250.0,1.83948078]
[1750404602737,0.26588204,105270.0,105260.0,0.1899866]
[1750404602938,0.1899817,105270.0,105260.0,0.86456464]
[1750404603138,0.1907817,105270.0,105260.0,0.86456464]
[1750404603335,0.43835974,105270.0,105260.0,0.86456464]
[1750404603543,0.43875974,105270.0,105260.0,0.86456464]
[1750404603836,0.1899817,105270.0,105260.0,0.86456464]
[1750404604542,0.44975974,105270.0,105260.0,0.86556464]
[1750404604839,0.2013817,105270.0,105260.0,0.86547719]
[1750404605039,0.2009817,105270.0,105260.0,0.86947719]
[1750404605236,0.2009817,105270.0,105260.0,0.87365126]
[1750404605440,0.2013817,105270.0,105260.0,0.90455126]
[1750404606346,0.2013817,105270.0,105260.0,0.91393619]
[1750404607048,0.2013817,105270.0,105260.0,1.3920456]
[1750404607233,0.2013817,105270.0,105260.0,1.64033619]
[1750404609248,0.25826336,105270.0,105260.0,1.64033619]
[1750404610247,0.25826336,105270.0,105260.0,1.63095126]
[1750404610447,0.25826336,105270.0,105260.0,1.63091126]
[1750404610845,0.25826336,105270.0,105260.0,1.640368]
[1750404611057,0.25826336,105270.0,105260.0,1.63091126]
[1750404615549,0.25826336,105270.0,105260.0,1.64032991]
[1750404618751,0.25786336,105270.0,105260.0,1.64032991]
[1750404618944,0.25826336,105270.0,105260.0,1.64032991]
[1750404620951,0.25826336,105270.0,105260.0,0.91396991]
[1750404621142,0.25826336,105270.0,105260.0,1.64004991]
[1750404622449,0.25826336,105270.0,105260.0,1.64000991]
[1750404624045,0.06788166,105270.0,105260.0,1.8883005]
[1750404624238,0.0114,105270.0,105260.0,1.8882605]
[1750404624445,0.2013686,105270.0,105260.0,1.39167932]
[1750404624644,0.2009686,105270.0,105260.0,1.63996991]
[1750404624845,0.2013686,105270.0,105260.0,1.63996991]
[1750404625054,0.2013686,105270.0,105260.0,1.71449211]
[1750404627745,0.0114,105270.0,105260.0,2.4027827]
[1750404627948,0.04544608,105280.0,105270.0,0.1899686]
[1750404628250,0.04464608,105280.0,105270.0,1.85365598]
[1750404628745,0.04504608,105280.0,105270.0,1.85365598]
[1750404630156,0.04504608,105280.0,105270.0,1.85357598]
[1750404630349,0.05004608,105280.0,105270.0,1.85357598]
[1750404631451,0.05004608,105280.0,105270.0,1.85757598]
[1750404633958,0.05004608,105280.0,105270.0,1.3609948]
[1750404634258,0.05004608,105280.0,105270.0,1.85757598]
[1750404635159,0.23999668,105280.0,105270.0,1.13169598]
[1750404635458,0.29687834,105280.0,105270.0,0.80305919]
[1750404635654,0.58668727,105280.0,105270.0,1.14606267]
[1750404635961,0.58668727,105280.0,105270.0,0.55894267]
[1750404636153,0.33839668,105280.0,105270.0,1.53303326]
[1750404636549,0.30509668,105280.0,105270.0,1.53303326]
[1750404636757,0.30509668,105280.0,105270.0,1.78132385]
[1750404637055,0.30469668,105280.0,105270.0,1.59723326]
[1750404637254,0.36196447,105280.0,105270.0,1.59723326]
[1750404639758,0.36196447,105280.0,105270.0,1.56593326]
[1750404640057,0.36196447,105280.0,105270.0,1.53303326]
[1750404642860,0.36196447,105280.0,105270.0,0.80723326]
[1750404643059,0.36196447,105280.0,105270.0,1.53299326]
[1750404643658,0.36196447,105280.0,105270.0,0.55894267]
[1750404643962,0.36196447,105280.0,105270.0,1.53299326]
[1750404644165,0.30509668,105280.0,105270.0,1.53299326]
[1750404645860,0.30509668,105280.0,105270.0,0.69762267]
[1750404646075,0.30509668,105280.0,105270.0,1.53299326]
[1750404647670,0.30509668,105280.0,105270.0,0.80723326]
[1750404647861,0.30509668,105280.0,105270.0,1.53279326]
[1750404648770,0.30509668,105280.0,105270.0,0.80723326]
[1750404648968,0.30509668,105280.0,105270.0,1.53279326]
[1750404649470,0.30509668,105280.0,105270.0,0.94575326]
[1750404649669,0.30509668,105280.0,105270.0,1.53279326]
[1750404655468,0.30509668,105280.0,105270.0,0.80723326]
[1750404655673,0.30509668,105280.0,105270.0,1.53275326]
[1750404655870,0.30509668,105280.0,105270.0,0.84013326]
[1750404656079,0.30469668,105280.0,105270.0,1.56565326]
[1750404656878,0.30509668,105280.0,105270.0,1.56565326]
[1750404657773,0.30509668,105280.0,105270.0,1.59755326]
[1750404660879,0.23999668,105280.0,105270.0,1.59747326]
[1750404661570,0.23959668,105280.0,105270.0,1.59747326]
[1750404661770,0.23999668,105280.0,105270.0,1.59747326]
[1750404663376,0.23999668,105280.0,105270.0,0.76226267]
[1750404663678,0.27159668,105280.0,105270.0,1.59747326]
[1750404664184,0.27159668,105280.0,105270.0,0.50749407]
[1750404664373,0.37869702,105280.0,105270.0,1.28434267]
[1750404664574,0.37869702,105280.0,105270.0,0.80723326]
[1750404664776,0.31589702,105280.0,105270.0,1.53263326]
[1750404664974,0.31589702,105280.0,105270.0,1.59523326]
[1750404665277,0.31589702,105280.0,105270.0,1.34694267]
[1750404665484,0.31589702,105280.0,105270.0,1.59523326]
[1750404666384,0.23999668,105280.0,105270.0,1.59523326]
[1750404667184,0.23999668,105280.0,105270.0,0.43157407]
[1750404667389,0.23999668,105280.0,105270.0,1.31560267]
[1750404667581,0.37829702,105280.0,105270.0,1.12563407]
[1750404667784,0.37829702,105280.0,105270.0,1.31560267]
[1750404668182,0.37829702,105280.0,105270.0,1.56389326]
[1750404668484,0.23999668,105280.0,105270.0,1.59619326]
[1750404668684,0.23959668,105280.0,105270.0,0.87083326]
[1750404668885,0.31589702,105280.0,105270.0,1.59619326]
[1750404669685,0.31589702,105280.0,105270.0,0.87083326]
[1750404669886,0.31589702,105280.0,105270.0,1.59619326]
[1750404670186,0.23999668,105280.0,105270.0,1.59619326]
[1750404670385,0.23999668,105280.0,105270.0,1.62699326]
[1750404670984,0.24499668,105280.0,105270.0,1.62399326]
[1750404671185,0.24499668,105280.0,105270.0,1.37570267]
[1750404671388,0.24499668,105280.0,105270.0,1.62399326]
[1750404671889,0.05504608,105280.0,105270.0,1.87228385]
[1750404672089,0.11165252,105280.0,105270.0,1.87228385]
[1750404672292,0.11205252,105280.0,105270.0,1.87228385]
[1750404672685,0.11165252,105280.0,105270.0,1.87228385]
[1750404672990,0.11205252,105280.0,105270.0,1.87201475]
[1750404674894,0.05504608,105280.0,105270.0,1.87198751]
[1750404676494,0.05504608,105280.0,105270.0,1.37570267]
[1750404676695,0.05504608,105280.0,105270.0,1.87198751]
[1750404677286,0.05504608,105280.0,105270.0,2.23278751]
[1750404677900,0.11205252,105280.0,105270.0,2.23278751]
[1750404678089,0.11205252,105280.0,105270.0,2.24970599]
[1750404678392,0.05504608,105280.0,105270.0,2.24970599]
[1750404678800,0.05464608,105280.0,105270.0,2.24970599]
[1750404679501,0.05504608,105280.0,105270.0,2.24970599]
[1750404681703,0.05464608,105280.0,105270.0,2.24970599]
[1750404681904,0.05504608,105280.0,105270.0,2.24970599]
[1750404682907,0.05504608,105280.0,105270.0,1.75342115]
[1750404683107,0.05504608,105280.0,105270.0,2.24970599]
[1750404685911,0.05504608,105280.0,105270.0,1.52434599]
[1750404686113,0.05504608,105280.0,105270.0,2.24930599]
[1750404686315,0.24499668,105280.0,105270.0,2.24930599]
[1750404686610,0.05504608,105280.0,105270.0,2.24930599]
[1750404694014,0.05464608,105280.0,105270.0,2.24930599]
[1750404694413,0.05504608,105280.0,105270.0,2.24930599]
[1750404696915,0.05504608,105280.0,105270.0,2.24929317]
[1750404699112,0.05464608,105280.0,105270.0,2.24929317]
[1750404699312,0.05504608,105280.0,105270.0,2.24929317]
[1750404700019,0.0542636,105290.0,105280.0,0.1899506]
[1750404700222,0.3053002,105300.0,105290.0,0.1899325]
[1750404700521,0.3053002,105300.0,105290.0,1.83334452]
[1750404700713,0.3057002,105300.0,105290.0,1.83334452]
[1750404701223,0.0683,105300.0,105290.0,1.85074421]
[1750404701409,0.0054,105300.0,105290.0,1.88174421]
[1750404701613,0.005,105300.0,105290.0,1.88174421]
[1750404701815,0.0124,105300.0,105290.0,1.88174421]
[1750404702117,0.0054,105300.0,105290.0,1.88174421]
[1750404702423,0.0104,105300.0,105290.0,1.88174421]
[1750404702622,0.01,105300.0,105290.0,1.88174421]
[1750404702817,0.0104,105300.0,105290.0,0.90868755]
[1750404703023,0.0104,105300.0,105290.0,1.63352755]
[1750404703425,0.0721,105300.0,105290.0,1.63352755]
[1750404704026,0.0721,105300.0,105290.0,1.63652755]
[1750404705022,0.0104,105300.0,105290.0,1.63652755]
[1750404705417,0.0721,105300.0,105290.0,1.63652755]
[1750404706328,0.2620145,105300.0,105290.0,0.70945229]
[1750404706525,0.2921145,105300.0,105290.0,0.70945229]
[1750404706724,0.2921145,105300.0,105290.0,0.95750765]
[1750404706924,0.2921145,105300.0,105290.0,0.5537326]
[1750404707126,0.2921145,105300.0,105290.0,1.2785326]
[1750404707327,0.2921145,105300.0,105290.0,0.50212]
[1750404707625,0.2921145,105300.0,105290.0,1.2785326]
[1750404708020,0.2921145,105300.0,105290.0,1.2784526]
[1750404708418,0.2921145,105300.0,105290.0,1.52650796]
[1750404709122,0.2917145,105300.0,105290.0,1.52650796]
[1750404709330,0.2620145,105300.0,105290.0,1.55860796]
[1750404711030,0.2620145,105300.0,105290.0,1.56278203]
[1750404713732,0.2620145,105300.0,105290.0,1.92358203]
[1750404714237,0.0721,105300.0,105290.0,1.92358203]
[1750404714730,0.2620145,105300.0,105290.0,1.92358203]
[1750404719129,0.0717,105300.0,105290.0,1.26126203]
[1750404719331,0.2616145,105300.0,105290.0,2.00338822]
[1750404719528,0.0717,105300.0,105290.0,2.00338822]
[1750404719836,0.12901454,105300.0,105290.0,2.00338822]
[1750404720031,0.09861454,105300.0,105290.0,2.00338822]
[1750404720238,0.06691454,105300.0,105290.0,2.00338822]
[1750404720431,0.06731454,105300.0,105290.0,2.00338822]
[1750404721036,0.06691454,105300.0,105290.0,2.00338822]
[1750404721334,0.06731454,105300.0,105290.0,2.00338822]
[1750404722637,0.25722904,105300.0,105290.0,1.27870822]
[1750404722832,0.32042904,105300.0,105290.0,1.35454822]
[1750404723032,0.35212904,105300.0,105290.0,1.94090822]
[1750404723839,0.35212904,105300.0,105290.0,1.21630822]
[1750404724035,0.35212904,105300.0,105290.0,1.94090822]
[1750404724839,0.35212904,105300.0,105290.0,1.21630822]
[1750404725140,0.35212904,105300.0,105290.0,1.94090822]
[1750404727741,0.6001844,105300.0,105290.0,0.91870667]
[1750404727940,0.54326986,105300.0,105290.0,1.64326667]
[1750404728144,0.2952145,105300.0,105290.0,1.64326667]
[1750404728441,0.2952145,105300.0,105290.0,1.89132203]
[1750404729642,0.2952145,105300.0,105290.0,1.16676203]
[1750404729843,0.2952145,105300.0,105290.0,1.89132203]
[1750404730246,0.2952145,105300.0,105290.0,1.64326667]
[1750404730439,0.2952145,105300.0,105290.0,1.89132203]
[1750404731746,0.2635145,105300.0,105290.0,1.89132203]
[1750404731948,0.2635145,105300.0,105290.0,1.92422203]
[1750404732240,0.2631145,105300.0,105290.0,1.92422203]
[1750404732449,0.2635145,105300.0,105290.0,1.92422203]
[1750404733240,0.2635145,105300.0,105290.0,1.95652203]
[1750404734146,0.2635145,105300.0,105290.0,1.95352203]
[1750404735045,0.2635145,105300.0,105290.0,1.98522203]
[1750404735242,0.2585145,105300.0,105290.0,1.98522203]
[1750404735447,0.2645145,105300.0,105290.0,1.98522203]
[1750404738549,0.2013145,105300.0,105290.0,1.98522203]
[1750404740152,0.2013145,105300.0,105290.0,1.26066203]
[1750404740456,0.2013145,105300.0,105290.0,1.98506203]
[1750404740653,0.2332145,105300.0,105290.0,1.98506203]
[1750404742262,0.2632145,105300.0,105290.0,1.98506203]
[1750404744371,0.2632145,105300.0,105290.0,2.00221385]
[1750404745461,0.2013145,105300.0,105290.0,2.00221385]
[1750404745665,0.2009145,105300.0,105290.0,2.00221385]
[1750404745864,0.2013145,105300.0,105290.0,2.00221385]
[1750404746172,0.2009145,105300.0,105290.0,2.00221385]
[1750404746372,0.2013145,105300.0,105290.0,2.00221385]
[1750404746569,0.25827469,105300.0,105290.0,2.00221385]
[1750404746773,0.25827533,105300.0,105290.0,2.00221385]
[1750404746973,0.25827533,105300.0,105290.0,1.75415849]
[1750404747174,0.25827533,105300.0,105290.0,2.00221385]
[1750404748276,0.25827533,105300.0,105290.0,0.94860667]
[1750404748474,0.2013145,105300.0,105290.0,1.92098203]
[1750404748674,0.2340145,105300.0,105290.0,1.92098203]
[1750404749273,0.2340145,105300.0,105290.0,1.95418203]
[1750404750078,0.2664145,105300.0,105290.0,1.22986203]
[1750404750384,0.2664145,105300.0,105290.0,1.97107122]
[1750404750875,0.2664145,105300.0,105290.0,1.24675122]
[1750404751065,0.2664145,105300.0,105290.0,1.97107122]
[1750404751470,0.2664145,105300.0,105290.0,2.00387122]
[1750404752178,0.2013145,105300.0,105290.0,2.00387122]
[1750404752376,0.2582824,105300.0,105290.0,2.00387122]
[1750404752674,0.2009145,105300.0,105290.0,2.00387122]
[1750404752875,0.2013145,105300.0,105290.0,2.00387122]
[1750404755979,0.2013145,105300.0,105290.0,1.75581586]
[1750404756278,0.2013145,105300.0,105290.0,2.00387122]
[1750404757281,0.2013145,105300.0,105290.0,1.27955122]
[1750404757481,0.2013145,105300.0,105290.0,2.00387122]
[1750404758271,0.2013145,105300.0,105290.0,1.27955122]
[1750404758470,0.2013145,105300.0,105290.0,2.00383122]
[1750404758779,0.2013145,105300.0,105290.0,1.27955122]
[1750404758974,0.2013145,105300.0,105290.0,2.00383122]
[1750404759170,0.2013145,105300.0,105290.0,1.27955122]
[1750404759378,0.2013145,105300.0,105290.0,2.00383122]
[1750404762179,0.2013145,105300.0,105290.0,1.01460667]
[1750404762380,0.2645145,105300.0,105290.0,1.67288667]
[1750404763190,0.2645145,105300.0,105290.0,1.92094203]
[1750404765683,0.34041484,105300.0,105290.0,0.97382943]
[1750404765891,0.37241484,105300.0,105290.0,0.97382943]
[1750404766189,0.37241484,105300.0,105290.0,1.45001407]